fUST/lending_fUST_20250901
["ID","MTS","AMOUNT","RATE_DAILY","PERIOD"]
[382670789,1756703824697,100000.0,0.00030695,60]
[382670790,1756703853478,247.44333495,0.00016,20]
[382670791,1756703862307,863.74,0.00012329,2]
[382670792,1756703894349,5000.0,0.0001611,6]
[382670793,1756703904021,666.0,0.00013233,2]
[382670794,1756703918082,300.0,0.00014087,2]
[382670795,1756703933509,300.0,0.00014087,2]
[382670796,1756703937066,422.02972735,0.00013803,2]
[382670797,1756703937384,211.01486367,0.00013803,2]
[382670798,1756703942189,300.0,0.00014087,2]
[382670799,1756703958052,300.0,0.00014087,2]
[382670800,1756703966390,300.0,0.00014087,2]
[382670801,1756703982148,300.0,0.00014087,2]
[382670802,1756703990324,300.0,0.00014087,2]
[382670803,1756704014496,191.54671468,0.00013947,2]
[382670804,1756704037531,191.54671468,0.00013947,2]
[382670805,1756704057482,10000.01,0.00013231,2]
[382670806,1756704057505,10000.01,0.00013231,2]
[382670807,1756704057528,10000.01,0.00013231,2]
[382670808,1756704057551,10000.01,0.00013231,2]
[382670809,1756704057573,27.5777593,0.00013231,2]
[382670810,1756704060353,191.54671468,0.00013947,2]
[382670812,1756704083230,191.54671468,0.00013947,2]
[382670813,1756704106357,191.54671468,0.00013947,2]
[382670814,1756704126478,9397.79209666,0.0001323,2]
[382670815,1756704126502,602.20790334,0.0001323,2]
[382670816,1756704129667,191.54671468,0.00013947,2]
[382670817,1756704152228,191.54671468,0.00013947,2]
[382670818,1756704174690,191.54671468,0.00013947,2]
[382670819,1756704191632,191.54671468,0.00013947,2]
[382670820,1756704200275,5065.09497019,0.0001399,2]
[382670821,1756704203505,158.0,0.000273,120]
[382670822,1756704204473,158.0,0.000273,120]
[382670823,1756704223599,3566.52026775,0.0001399,2]
[382670824,1756704223623,1498.57470244,0.0001399,2]
[382670825,1756704231669,5000.0,0.0001399,2]
[382670826,1756704247376,3501.43529756,0.0001399,2]
[382670827,1756704247402,1563.65967263,0.0001399,2]
[382670828,1756704255220,300.0,0.00014083,2]
[382670829,1756704258118,158.0,0.00014,2]
[382670830,1756704264561,159.19460115,0.00014,2]
[382670831,1756704271500,300.0,0.00014083,2]
[382670832,1756704280000,300.0,0.00014083,2]
[382670833,1756704295275,300.0,0.00014083,2]
[382670834,1756704296524,3003.0,0.00027397,120]
[382670835,1756704303825,300.0,0.00014083,2]
[382670836,1756704319149,906.0,0.0001408,2]
[382670837,1756704327119,1239.95176766,0.0001408,2]
[382670838,1756704342555,2323.91629835,0.00013997,2]
[382670839,1756704351537,2149.28766021,0.00013997,2]
[382670840,1756704351562,174.62863814,0.00013997,2]
[382670841,1756704353408,1138.09888,0.00013699,2]
[382670842,1756704367708,5065.09497019,0.00013989,2]
[382670843,1756704375566,3622.18751167,0.00013989,2]
[382670844,1756704375588,1442.90745852,0.00013989,2]
[382670846,1756704391409,5065.09497019,0.00013989,2]
[382670849,1756704399697,471.0369638,0.00013989,2]
[382670853,1756704415436,3020.97060749,0.00013989,2]
[382670854,1756704415460,2044.1243627,0.00013989,2]
[382670857,1756704422348,155.67620431,0.00013911,2]
[382670858,1756704425823,189.07520462,0.00013911,2]
[382670859,1756704439134,5065.09497019,0.00013989,2]
[382670860,1756704461676,2546.03925818,0.00013989,2]
[382670861,1756704461700,2519.05571201,0.00013989,2]
[382670865,1756704482274,155.67620431,0.00013911,2]
[382670866,1756704484751,5065.09497019,0.00013989,2]
[382670868,1756704496274,311.57,0.00012329,2]
[382670869,1756704506702,259.64,0.00012329,2]
[382670870,1756704508026,1688.97311349,0.00013989,2]
[382670871,1756704508051,3376.1218567,0.00013989,2]
[382670872,1756704517348,216.37,0.00012329,2]
[382670873,1756704527753,180.31,0.00012329,2]
[382670876,1756704531471,5065.09497019,0.00013989,2]
[382670877,1756704538153,150.25,0.00012329,2]
[382670878,1756704542335,155.6762043,0.00013911,2]
[382670879,1756704548547,751.3,0.00012329,2]
[382670880,1756704554643,104.88696881,0.00013989,2]
[382670881,1756704554668,4960.20800138,0.00013989,2]
[382670882,1756704559380,10000.0,0.00030687,60]
[382670883,1756704577813,5000.0,0.0001611,6]
[382670884,1756704599735,754.4,0.00012329,2]
[382670885,1756704601587,5000.0,0.0001611,6]
[382670889,1756704626012,4285.40199862,0.00013989,2]
[382670890,1756704626036,779.69297157,0.00013989,2]
[382670891,1756704630759,852.81,0.00012329,2]
[382671499,1756704643320,-1652.91237544,0.0001413,2]
[382671500,1756704643335,-327.0214455,0.0001413,2]
[382671686,1756704649172,3085.16114925,0.00013989,2]
[382671690,1756704672742,3085.16114925,0.00013989,2]
[382671692,1756704695951,2197.18472993,0.00013989,2]
[382671693,1756704695977,887.97641932,0.00013989,2]
[382671695,1756704697863,-327.09916787,0.0001413,2]
[382671696,1756704704198,-474.41549912,0.0001413,2]
[382671698,1756704709988,-210.11816667,0.0001413,2]
[382671699,1756704711648,-172.54835723,0.0001413,2]
[382671700,1756704713778,-271.60356457,0.0001413,2]
[382671701,1756704719115,9112.03358068,0.0001399,2]
[382671702,1756704719140,10000.01,0.0001399,2]
[382671703,1756704719164,10000.01,0.0001399,2]
[382671704,1756704719189,10000.01,0.0001399,2]
[382671705,1756704719214,512.63643419,0.0001399,2]
[382671707,1756704734497,8229.0,0.00025,30]
[382671708,1756704788649,5000.0,0.0001611,6]
[382671709,1756704811528,5000.0,0.0001611,6]
[382671710,1756704813363,152.6224328,0.0001403,2]
[382671711,1756704818145,152.62243278,0.00014033,2]
[382671712,1756704823009,152.62243278,0.00014035,2]
[382671713,1756704823135,666.0,0.00013134,2]
[382671714,1756704835138,5000.0,0.0001611,6]
[382671721,1756704857789,300.0,0.00013988,2]
[382671723,1756704881005,1113.059798,0.00013699,2]
[382671724,1756704881309,300.0,0.00013988,2]
[382671728,1756704906450,151.26416307,0.00013928,2]
[382671729,1756704913249,300.0,0.00013988,2]
[382671730,1756704936647,2700.0,0.00013988,2]
[382671732,1756704960823,3180.0,0.00013988,2]
[382671733,1756704984218,300.0,0.00013987,2]
[382671734,1756705007352,19.18230638,0.00013987,2]
[382671735,1756705007378,280.81769362,0.00013987,2]
[382671736,1756705012553,7331.55175889,0.00014038,2]
[382671737,1756705030119,893.0,0.00013987,2]
[382671738,1756705053452,893.0,0.00013987,2]
[382671739,1756705069693,-300.0,0.00014128,2]
[382671740,1756705069721,-593.0,0.00014128,2]
[382671741,1756705069749,-300.0,0.00014129,2]
[382671742,1756705069777,-300.0,0.00014129,2]
[382671743,1756705069804,-300.0,0.00014129,2]
[382671744,1756705069832,-1200.0,0.00014129,2]
[382671745,1756705069861,-300.0,0.00014129,2]
[382671746,1756705069888,-480.0,0.00014129,2]
[382671747,1756705069916,-500.0,0.00014129,2]
[382671748,1756705069942,-241.63940636,0.00014129,2]
[382671749,1756705069970,-470.73118728,0.00014129,2]
[382671750,1756705070386,-29.26881272,0.00014129,2]
[382671751,1756705070413,-457.593593,0.00014129,2]
[382671752,1756705070440,-500.0,0.00014129,2]
[382671753,1756705070469,-500.0,0.00014129,2]
[382671754,1756705070500,-166.21293923,0.00014129,2]
[382671755,1756705070528,-440.62480388,0.00014129,2]
[382671756,1756705070557,-500.0,0.00014129,2]
[382671757,1756705070587,-500.0,0.00014129,2]
[382671758,1756705070615,-500.0,0.00014129,2]
[382671759,1756705070643,-500.0,0.00014129,2]
[382671760,1756705070673,-500.0,0.00014129,2]
[382671761,1756705070703,-312.60970234,0.00014129,2]
[382671762,1756705070844,-187.39029766,0.00014129,2]
[382671763,1756705070873,-500.0,0.00014129,2]
[382671764,1756705070901,-413.10606773,0.00014129,2]
[382671765,1756705070929,-500.0,0.00014129,2]
[382671766,1756705070958,-500.0,0.00014129,2]
[382671767,1756705070988,-500.0,0.00014129,2]
[382671768,1756705071016,-500.0,0.00014129,2]
[382671769,1756705071045,-500.0,0.00014129,2]
[382671770,1756705071073,-500.0,0.00014129,2]
[382671771,1756705071102,-500.0,0.00014129,2]
[382671772,1756705071132,-299.01726922,0.00014129,2]
[382671773,1756705071164,-200.98273078,0.00014129,2]
[382671774,1756705071193,-500.0,0.00014129,2]
[382671775,1756705071223,-500.0,0.00014129,2]
[382671776,1756705071253,-500.0,0.00014129,2]
[382671777,1756705071282,-500.0,0.00014129,2]
[382671778,1756705071313,-500.0,0.00014129,2]
[382671779,1756705071342,-500.0,0.00014129,2]
[382671780,1756705071536,-500.0,0.00014129,2]
[382671781,1756705071568,-500.0,0.00014129,2]
[382671782,1756705071599,-500.0,0.00014129,2]
[382671783,1756705071631,-98.04453844,0.00014129,2]
[382671784,1756705071674,-401.95546156,0.00014129,2]
[382671785,1756705071704,-500.0,0.00014129,2]
[382671786,1756705071733,-500.0,0.00014129,2]
[382671787,1756705071764,-500.0,0.00014129,2]
[382671788,1756705071794,-500.0,0.00014129,2]
[382671789,1756705071824,-500.0,0.00014129,2]
[382671790,1756705071853,-500.0,0.00014129,2]
[382671791,1756705071883,-500.0,0.00014129,2]
[382671792,1756705071913,-287.55047151,0.00014129,2]
[382671793,1756705071944,-500.0,0.00014129,2]
[382671794,1756705071975,-120.99813386,0.00014129,2]
[382671795,1756705072043,-379.00186614,0.00014129,2]
[382671796,1756705072072,-500.0,0.00014129,2]
[382671797,1756705072101,-500.0,0.00014129,2]
[382671798,1756705072133,-500.0,0.00014129,2]
[382671799,1756705072162,-500.0,0.00014129,2]
[382671800,1756705072193,-500.0,0.00014129,2]
[382671801,1756705072224,-490.97329101,0.00014129,2]
[382671802,1756705072254,-480.0,0.00014129,2]
[382671803,1756705072286,-500.0,0.00014129,2]
[382671804,1756705072317,-500.0,0.00014129,2]
[382671805,1756705072524,-480.0,0.00014129,2]
[382671806,1756705072553,-776.58,0.00014129,2]
[382671807,1756705072581,-480.0,0.00014129,2]
[382671808,1756705072612,-999.45,0.00014129,2]
[382671809,1756705072641,-480.0,0.00014129,2]
[382671810,1756705072670,-400.0,0.00014129,2]
[382671811,1756705072698,-500.0,0.0001413,2]
[382671812,1756705072727,-709.88820712,0.0001413,2]
[382671813,1756705072756,-61.85686132,0.0001413,2]
[382671814,1756705073045,-224.45986312,0.0001413,2]
[382671815,1756705073076,-500.0,0.0001413,2]
[382671816,1756705073106,-500.0,0.0001413,2]
[382671817,1756705073137,-500.0,0.0001413,2]
[382671818,1756705073167,-500.0,0.0001413,2]
[382671819,1756705073196,-258.05376196,0.0001413,2]
[382671820,1756705073225,-500.0,0.0001413,2]
[382671821,1756705073254,-500.0,0.0001413,2]
[382671822,1756705073417,-500.0,0.0001413,2]
[382671823,1756705073451,-500.0,0.0001413,2]
[382671824,1756705073481,-500.0,0.0001413,2]
[382671825,1756705073677,-500.0,0.0001413,2]
[382671826,1756705073710,-500.0,0.0001413,2]
[382671827,1756705073740,-500.0,0.0001413,2]
[382671828,1756705073770,-650.0,0.0001413,2]
[382671829,1756705073800,-390.45581578,0.0001413,2]
[382671830,1756705073828,-301.526,0.0001413,2]
[382671831,1756705076922,632.56002849,0.00013988,2]
[382671832,1756705076950,247.43997151,0.00013988,2]
[382671833,1756705099755,-500.0,0.00014129,2]
[382671834,1756705099787,-300.0,0.0001413,2]
[382671835,1756705101254,500.0,0.00013988,2]
[382671836,1756705101993,-500.0,0.00014129,2]
[382671837,1756705102024,-500.0,0.00014129,2]
[382671838,1756705102056,-500.0,0.00014129,2]
[382671839,1756705102087,-500.0,0.00014129,2]
[382671840,1756705102118,-500.0,0.00014129,2]
[382671841,1756705102150,-500.0,0.00014129,2]
[382671842,1756705102181,-500.0,0.00014129,2]
[382671843,1756705102211,-500.0,0.00014129,2]
[382671844,1756705102242,-500.0,0.00014129,2]
[382671845,1756705102274,-500.0,0.00014129,2]
[382671846,1756705102468,-282.0,0.00014129,2]
[382671847,1756705102498,-500.0,0.00014129,2]
[382671848,1756705102532,-500.0,0.00014129,2]
[382671849,1756705103755,-8190.96623174,0.00014131,2]
[382671850,1756705103950,-10000.01,0.00014131,2]
[382671851,1756705103974,-10000.01,0.00014131,2]
[382671852,1756705109784,-10000.01,0.00014131,2]
[382671853,1756705110014,-10000.01,0.00014131,2]
[382671854,1756705110090,-10000.01,0.00014131,2]
[382671855,1756705110218,-10000.01,0.00014131,2]
[382671856,1756705110330,-10000.01,0.00014131,2]
[382671857,1756705110470,-483.0498722,0.00014129,2]
[382671858,1756705110512,-9033.9102556,0.00014131,2]
[382671859,1756705110602,-10000.01,0.00014131,2]
[382671860,1756705110726,-10000.01,0.00014131,2]
[382671861,1756705110852,-10000.01,0.00014131,2]
[382671862,1756705110966,-10000.01,0.00014131,2]
[382671863,1756705125106,1737.46341254,0.00013988,2]
[382671864,1756705129683,209.2363689,0.0001321,2]
[382671865,1756705139788,326.0193659,0.00013707,2]
[382671866,1756705148427,2999.43418869,0.00013988,2]
[382671867,1756705151320,-249.5108133,0.00014129,2]
[382671868,1756705154076,-204.76144835,0.00014129,2]
[382671869,1756705154103,-35.4845863,0.00014129,2]
[382671870,1756705155706,-233.58949047,0.00014129,2]
[382671871,1756705158199,-176.0583158,0.00014129,2]
[382671872,1756705159777,-154.29976482,0.00014129,2]
[382671873,1756705163221,-152.19350763,0.00014129,2]
[382671874,1756705165155,-44.43433498,0.00014129,2]
[382671875,1756705165178,-180.42755372,0.00014129,2]
[382671876,1756705169850,-306.70359717,0.00014129,2]
[382671877,1756705169878,-481.97077615,0.00014129,2]
[382671878,1756705169907,-480.0,0.00014129,2]
[382671879,1756705169937,-300.0,0.00014129,2]
[382671880,1756705169965,-480.0,0.00014129,2]
[382671881,1756705169994,-677.0,0.00014129,2]
[382671882,1756705170163,-227.4492808,0.0001413,2]
[382671883,1756705170283,-9323.01,0.0001413,2]
[382671884,1756705170315,-2767.99200232,0.0001413,2]
[382671885,1756705170347,-500.0,0.0001413,2]
[382671886,1756705170378,-500.0,0.0001413,2]
[382671887,1756705170408,-500.0,0.0001413,2]
[382671888,1756705170441,-500.0,0.0001413,2]
[382671889,1756705170592,-500.0,0.0001413,2]
[382671890,1756705170624,-500.0,0.0001413,2]
[382671891,1756705170655,-500.0,0.0001413,2]
[382671892,1756705170692,-500.0,0.0001413,2]
[382671893,1756705170721,-500.0,0.0001413,2]
[382671894,1756705170750,-327.11016105,0.0001413,2]
[382671895,1756705170781,-500.0,0.0001413,2]
[382671896,1756705170810,-500.0,0.0001413,2]
[382671897,1756705170839,-500.0,0.0001413,2]
[382671898,1756705170868,-500.0,0.0001413,2]
[382671899,1756705170981,-500.0,0.0001413,2]
[382671900,1756705171010,-500.0,0.0001413,2]
[382671901,1756705171038,-500.0,0.0001413,2]
[382671902,1756705171067,-500.0,0.0001413,2]
[382671903,1756705171096,-500.0,0.0001413,2]
[382671904,1756705171126,-500.0,0.0001413,2]
[382671905,1756705171154,-500.0,0.0001413,2]
[382671906,1756705171184,-500.0,0.0001413,2]
[382671907,1756705171213,-500.0,0.0001413,2]
[382671908,1756705171241,-500.0,0.0001413,2]
[382671909,1756705171345,-500.0,0.0001413,2]
[382671910,1756705171373,-480.0,0.0001413,2]
[382671911,1756705171488,-480.0,0.00014129,2]
[382671912,1756705171925,-365.7996779,0.00014131,2]
[382671913,1756705171941,-8040.01,0.00014131,2]
[382671914,1756705171969,-480.0,0.00014131,2]
[382671915,1756705171991,-9040.01,0.00014131,2]
[382671916,1756705172022,-10000.01,0.00014131,2]
[382671917,1756705172060,-10000.01,0.00014131,2]
[382671918,1756705172363,-10000.01,0.00014131,2]
[382671919,1756705172433,297.52407789,0.00013988,2]
[382671920,1756705172459,182.47592211,0.00013988,2]
[382671921,1756705179158,30.64002849,0.00013466,2]
[382671922,1756705179182,344.09880816,0.00013466,2]
[382671923,1756705179205,1384.76426266,0.00013466,2]
[382671924,1756705179874,-480.0,0.00014129,2]
[382671925,1756705179905,-546.71,0.00014129,2]
[382671926,1756705179945,-480.0,0.0001413,2]
[382671927,1756705180072,-6804.11407789,0.00014131,2]
[382671928,1756705180121,-10000.01,0.00014131,2]
[382671929,1756705181037,-10000.01,0.00014131,2]
[382671930,1756705181170,-10000.01,0.00014131,2]
[382671931,1756705181288,-10000.01,0.00014131,2]
[382671932,1756705181423,-10000.01,0.00014131,2]
[382671933,1756705181569,-10000.01,0.00014131,2]
[382671934,1756705181687,-10000.01,0.00014131,2]
[382671935,1756705181797,-10000.01,0.00014131,2]
[382671936,1756705181919,-10000.01,0.00014131,2]
[382671937,1756705195613,2114.8023759,0.00013898,2]
[382671938,1756705196882,-292.56848298,0.00014038,2]
[382671939,1756705200495,-297.65044453,0.00014038,2]
[382671940,1756705204321,-306.99465509,0.00014038,2]
[382671941,1756705205904,-224.66406432,0.00014038,2]
[382671942,1756705207685,-174.65961751,0.00014038,2]
[382671943,1756705212742,-363.11395029,0.00014038,2]
[382671944,1756705216898,-312.82950899,0.00014038,2]
[382671945,1756705219017,-248.29323683,0.00014038,2]
[382671946,1756705221790,-164.58399121,0.00014038,2]
[382671947,1756705226150,-220.92924922,0.00014038,2]
[382671948,1756705228410,-229.51106449,0.00014038,2]
[382671949,1756705229920,-3086.13392614,0.00014038,2]
[382671950,1756705229951,-500.0,0.00014122,2]
[382671951,1756705229981,-151.0,0.00014122,2]
[382671952,1756705230012,-500.0,0.00014122,2]
[382671953,1756705230042,-151.0,0.00014122,2]
[382671954,1756705230073,-500.0,0.00014122,2]
[382671955,1756705230104,-72.74214772,0.00014122,2]
[382671956,1756705230260,-78.25785228,0.00014122,2]
[382671957,1756705230291,-500.0,0.00014122,2]
[382671958,1756705230322,-1360.00050872,0.00014122,2]
[382671959,1756705230354,-151.0,0.00014122,2]
[382671960,1756705230384,-250.0,0.00014122,2]
[382671961,1756705230417,-500.0,0.00014122,2]
[382671962,1756705230446,-262.89679858,0.00014122,2]
[382671963,1756705230477,-250.0,0.00014122,2]
[382671964,1756705230508,-500.0,0.00014122,2]
[382671965,1756705230538,-151.0,0.00014122,2]
[382671966,1756705230569,-457.19693535,0.00014122,2]
[382671967,1756705230597,-151.0,0.00014122,2]
[382671968,1756705230626,-151.0,0.00014122,2]
[382671969,1756705230655,-225.30581014,0.00014122,2]
[382671970,1756705230764,-24.69418986,0.00014122,2]
[382671971,1756705230799,-151.0,0.00014122,2]
[382671972,1756705230830,-250.0,0.00014122,2]
[382671973,1756705230861,-151.0,0.00014122,2]
[382671974,1756705230893,-244.24243975,0.00014122,2]
[382671975,1756705230924,-151.0,0.00014122,2]
[382671976,1756705230955,-151.0,0.00014122,2]
[382671977,1756705230985,-209.40437684,0.00014122,2]
[382671978,1756705231016,-300.0,0.00014127,2]
[382671979,1756705231047,-300.0,0.00014128,2]
[382671980,1756705231076,-300.0,0.00014128,2]
[382671981,1756705231107,-295.0,0.00014128,2]
[382671982,1756705231140,-1200.0,0.00014128,2]
[382671983,1756705231171,-480.0,0.00014129,2]
[382671984,1756705231205,-491.63,0.00014129,2]
[382671985,1756705231404,-1174.48,0.00014129,2]
[382671986,1756705231433,-1131.82,0.00014129,2]
[382671987,1756705231464,-2320.0,0.00014129,2]
[382671988,1756705231676,-210.4,0.00014129,2]
[382671989,1756705231871,-326.61,0.00014129,2]
[382671990,1756705231900,-214.03548761,0.0001413,2]
[382671991,1756705232071,-469.60883932,0.0001413,2]
[382671992,1756705232186,-939.21767864,0.0001413,2]
[382671993,1756705232416,-1878.43535728,0.0001413,2]
[382671994,1756705232603,-3756.87071456,0.0001413,2]
[382671995,1756705232705,-2486.26857088,0.0001413,2]
[382671996,1756705232738,-608.29654822,0.0001413,2]
[382671997,1756705232768,-480.0,0.0001413,2]
[382671998,1756705233093,-8914.28898264,0.00014131,2]
[382671999,1756705233126,-9060.79232136,0.00014131,2]
[382672000,1756705233156,-8121.57464272,0.00014131,2]
[382672001,1756705233173,-6243.13928544,0.00014131,2]
[382672002,1756705233199,-2486.26857088,0.00014131,2]
[382672003,1756705233219,-608.29654822,0.00014131,2]
[382672004,1756705233242,-480.0,0.00014131,2]
[382672005,1756705233258,-2850.8797618,0.00014131,2]
[382672006,1756705240708,151.0,0.00013981,2]
[382672007,1756705263270,250.0,0.00013912,2]
[382672008,1756705282099,152.78482104,0.00013466,2]
[382672009,1756705283764,610.52814486,0.00013466,2]
[382672010,1756705286555,250.0,0.00013912,2]
[382672011,1756705287382,-250.0,0.00014053,2]
[382672012,1756705287406,-93.84276798,0.00014122,2]
[382672013,1756705290011,-57.15723202,0.00014122,2]
[382672014,1756705290041,-480.0,0.00014129,2]
[382672015,1756705290070,-480.9231616,0.00014129,2]
[382672016,1756705290100,-480.0,0.00014129,2]
[382672017,1756705290130,-488.41963826,0.00014129,2]
[382672018,1756705290160,-1208.23,0.00014129,2]
[382672019,1756705290189,-481.36080035,0.00014129,2]
[382672020,1756705290217,-480.0,0.0001413,2]
[382672021,1756705290247,-300.0,0.0001413,2]
[382672022,1756705290477,-480.0,0.0001413,2]
[382672023,1756705290574,-480.0,0.0001413,2]
[382672024,1756705290746,-127.82833554,0.00014131,2]
[382672025,1756705290772,-9040.01,0.00014131,2]
[382672026,1756705290807,-10000.01,0.00014131,2]
[382672027,1756705290834,-10000.01,0.00014131,2]
[382672028,1756705290861,-10000.01,0.00014131,2]
[382672029,1756705290876,-10000.01,0.00014131,2]
[382672030,1756705290901,-10000.01,0.00014131,2]
[382672031,1756705290999,-111.83130827,0.00014131,2]
[382672032,1756705291031,-1000.0,0.00014138,2]
[382672033,1756705291064,-444.79562461,0.00014198,2]
[382672034,1756705291129,-6886.75613424,0.00014198,2]
[382672035,1756705291199,-500.0,0.00014228,2]
[382672036,1756705291229,-480.0,0.00014228,2]
[382672037,1756705291258,-481.61529543,0.00014228,2]
[382672038,1756705291290,-480.0,0.00014228,2]
[382672039,1756705291322,-480.0,0.00014228,2]
[382672040,1756705291353,-480.0,0.00014228,2]
[382672041,1756705291383,-480.1,0.00014228,2]
[382672042,1756705291412,-590.56,0.00014228,2]
[382672043,1756705291441,-480.0,0.00014228,2]
[382672044,1756705291474,-480.0,0.00014228,2]
[382672045,1756705291839,-480.0,0.00014228,2]
[382672046,1756705291871,-1508.61,0.00014228,2]
[382672047,1756705291900,-480.0,0.00014228,2]
[382672048,1756705291932,-482.35750628,0.00014228,2]
[382672049,1756705291966,-480.0,0.00014228,2]
[382672050,1756705291996,-571.52,0.00014228,2]
[382672051,1756705292027,-482.30376197,0.00014228,2]
[382672052,1756705292061,-482.3856939,0.00014228,2]
[382672053,1756705292184,151.0,0.00014129,2]
[382672054,1756705292573,-137.79135873,0.00014129,2]
[382672055,1756705292593,-65.6560757,0.00014129,2]
[382672056,1756705295094,-166.32488001,0.00014129,2]
[382672058,1756705309208,1220.92703138,0.00013988,2]
[382672059,1756705317193,2605.20165394,0.00013988,2]
[382672060,1756705320024,-1643.17768556,0.00014129,2]
[382672061,1756705320056,-480.0,0.00014129,2]
[382672062,1756705320086,-482.02396838,0.00014129,2]
[382672063,1756705320117,-1801.29,0.00014129,2]
[382672064,1756705320149,-571.78,0.00014129,2]
[382672065,1756705320263,-902.58,0.0001413,2]
[382672066,1756705320293,-480.0,0.0001413,2]
[382672067,1756705320324,-1209.07,0.0001413,2]
[382672068,1756705320354,-480.0,0.0001413,2]
[382672069,1756705320384,-480.0,0.0001413,2]
[382672070,1756705320414,-480.0,0.00014228,2]
[382672071,1756705320443,-480.0,0.00014228,2]
[382672072,1756705320473,-69.84,0.00014228,2]
[382672073,1756705320588,-837.03,0.00014228,2]
[382672074,1756705320618,-482.08901058,0.00014228,2]
[382672075,1756705320647,-461.63308123,0.00014228,2]
[382672076,1756705320676,-693.28,0.00014228,2]
[382672077,1756705320705,-480.0,0.00014228,2]
[382672078,1756705320742,-510.28,0.00014228,2]
[382672079,1756705320776,-482.62361852,0.00014228,2]
[382672080,1756705320807,-684.07,0.00014228,2]
[382672081,1756705320837,-257.99857934,0.00014228,2]
[382672082,1756705321004,-222.00142066,0.00014228,2]
[382672083,1756705321035,-891.28,0.00014228,2]
[382672084,1756705321066,-491.15,0.00014228,2]
[382672085,1756705321110,-480.0,0.00014228,2]
[382672086,1756705321144,-480.0,0.00014228,2]
[382672087,1756705321174,-480.0,0.00014228,2]
[382672088,1756705321204,-733.24,0.00014228,2]
[382672089,1756705321234,-940.19,0.00014228,2]
[382672090,1756705321264,-84.28715868,0.00014228,2]
[382672091,1756705321416,-395.71284132,0.00014228,2]
[382672092,1756705321447,-480.0,0.00014228,2]
[382672093,1756705321477,-480.0,0.00014228,2]
[382672094,1756705321506,-480.0,0.00014228,2]
[382672095,1756705321536,-480.0,0.00014228,2]
[382672096,1756705321567,-480.0,0.00014228,2]
[382672097,1756705321598,-480.0,0.00014228,2]
[382672098,1756705321628,-528.2,0.00014228,2]
[382672099,1756705321657,-627.09,0.00014228,2]
[382672100,1756705321687,-480.0,0.00014228,2]
[382672101,1756705322032,-480.0,0.00014228,2]
[382672102,1756705322065,-480.0,0.00014228,2]
[382672103,1756705322098,-651.63,0.00014228,2]
[382672104,1756705322129,-480.0,0.00014228,2]
[382672105,1756705322159,-480.0,0.00014228,2]
[382672106,1756705322190,-480.0,0.00014228,2]
[382672107,1756705322221,-976.53,0.00014228,2]
[382672108,1756705322252,-480.0,0.00014228,2]
[382672109,1756705322282,-480.0,0.00014229,2]
[382672110,1756705322422,-480.0,0.00014229,2]
[382672111,1756705322455,-480.0,0.00014229,2]
[382672112,1756705322487,-622.54,0.00014229,2]
[382672113,1756705322518,-480.0,0.00014229,2]
[382672114,1756705322548,-480.0,0.00014229,2]
[382672115,1756705322579,-480.0,0.00014229,2]
[382672116,1756705322610,-480.0,0.00014229,2]
[382672117,1756705322640,-480.0,0.00014229,2]